bitfinex-derivatives/quotes_BTCF0:USTF0_20241019
["timestamp","ask_amount","ask_price","bid_price","bid_amount"]
[1729336781225,0.065891,68291.0,68287.0,0.0307]
[1729336781226,0.065894,68288.0,68287.0,0.0307]
[1729336781416,0.066094,68288.0,68287.0,0.12392936]
[1729336783927,0.066094,68288.0,68287.0,0.0307]
[1729336784528,0.066094,68288.0,68287.0,0.12387241]
[1729336785028,0.066094,68288.0,68287.0,0.0307]
[1729336796239,0.066094,68288.0,68287.0,0.23184921]
[1729336796739,0.066094,68288.0,68287.0,0.0307]
[1729336801842,0.066094,68288.0,68287.0,0.3915]
[1729336804758,0.066094,68288.0,68287.0,0.45007934]
[1729336805053,0.066094,68288.0,68287.0,0.3915]
[1729336807054,0.066094,68288.0,68287.0,0.46472667]
[1729336807254,0.066094,68288.0,68287.0,0.3915]
[1729336811761,0.066094,68288.0,68287.0,0.48436841]
[1729336812056,0.0002,68288.0,68287.0,0.65271301]
[1729336812358,0.0002,68288.0,68287.0,0.76053272]
[1729336812565,0.0002,68288.0,68287.0,0.65808312]
[1729336814359,0.0002,68288.0,68287.0,0.76051859]
[1729336814559,0.0002,68288.0,68287.0,0.76051894]
[1729336816860,0.0002,68288.0,68287.0,0.65269923]
[1729336817666,0.066094,68288.0,68287.0,0.65269923]
[1729336817873,0.066094,68288.0,68287.0,0.59211295]
[1729336819065,0.066094,68288.0,68287.0,0.23131295]
[1729336819363,0.066094,68288.0,68287.0,0.3915]
[1729336819558,0.066094,68288.0,68287.0,0.59192741]
[1729336820869,0.066094,68288.0,68287.0,0.70906974]
[1729336825869,0.066094,68288.0,68287.0,0.59192741]
[1729336826978,0.066094,68288.0,68287.0,0.3915]
[1729336828176,0.065894,68288.0,68287.0,0.48404395]
[1729336828363,0.065894,68288.0,68287.0,1.52336395]
[1729336828962,0.065894,68288.0,68287.0,1.52333331]
[1729336829875,0.065894,68288.0,68287.0,1.58922831]
[1729336832765,0.065894,68288.0,68287.0,1.95002831]
[1729336833877,0.065894,68288.0,68287.0,1.95007621]
[1729336834766,0.065894,68288.0,68287.0,2.17990741]
[1729336835167,0.065894,68288.0,68287.0,1.74058741]
[1729336836967,0.065894,68288.0,68287.0,1.87229338]
[1729336837977,0.065894,68288.0,68287.0,1.74058741]
[1729336838672,0.065894,68288.0,68287.0,1.73584789]
[1729336839279,0.0002,68292.0,68287.0,1.73584789]
[1729336839483,0.0002,68292.0,68288.0,0.51524743]
[1729336839777,0.065892,68290.0,68289.0,0.31765289]
[1729336840568,0.065892,68290.0,68289.0,0.67845289]
[1729336841764,0.065892,68290.0,68289.0,0.3608]
[1729336844277,0.065892,68290.0,68289.0,0.4486001]
[1729336844975,0.065892,68290.0,68289.0,0.3608]
[1729336846178,0.065892,68290.0,68289.0,0.4486001]
[1729336846580,0.065892,68290.0,68289.0,0.3608]
[1729336847079,0.065892,68290.0,68289.0,0.4486001]
[1729336847777,0.065892,68290.0,68289.0,0.3608]
[1729336849187,0.065893,68289.0,68287.0,0.096594]
[1729336849376,0.065893,68289.0,68288.0,0.065894]
[1729336849581,0.065893,68289.0,68288.0,0.1571716]
[1729336849890,0.065893,68289.0,68288.0,0.38383884]
[1729336850075,0.065893,68289.0,68288.0,0.87634038]
[1729336851492,0.065893,68289.0,68288.0,0.67907954]
[1729336851680,0.065893,68289.0,68288.0,0.55839554]
[1729336852788,0.065893,68289.0,68288.0,0.6239909]
[1729336853688,0.065893,68289.0,68288.0,0.74469397]
[1729336856487,0.065893,68289.0,68288.0,0.51799091]
[1729336856687,0.065893,68289.0,68288.0,0.426694]
[1729336859889,0.065893,68289.0,68288.0,0.065894]
[1729336860197,0.065893,68289.0,68288.0,0.426694]
[1729336861587,0.065893,68289.0,68288.0,0.62412649]
[1729336862493,0.065893,68289.0,68288.0,0.45215965]
[1729336866089,0.065893,68289.0,68288.0,0.3608]
[1729336866689,0.065893,68289.0,68288.0,0.55861391]
[1729336867296,0.065893,68289.0,68288.0,0.09153615]
[1729336867687,0.065895,68287.0,68286.0,0.0002]
[1729336867999,0.066095,68287.0,68286.0,0.09202544]
[1729336869100,0.066095,68287.0,68286.0,0.0002]
[1729336869799,0.066095,68287.0,68286.0,0.09199553]
[1729336872703,0.066095,68287.0,68286.0,0.07333039]
[1729336876714,1.105415,68287.0,68286.0,0.07333039]
[1729336877015,1.105415,68287.0,68286.0,0.0002]
[1729336879903,0.065898,68283.0,68282.0,0.43393039]
[1729336880102,0.066098,68283.0,68282.0,0.43393039]
[1729336880304,0.066098,68283.0,68282.0,0.3608]
[1729336881909,0.066098,68283.0,68282.0,0.44855987]
[1729336882910,1.105458,68283.0,68282.0,0.44855987]
[1729336885123,1.105458,68283.0,68282.0,0.3608]
[1729336885420,1.105458,68283.0,68282.0,0.44855987]
[1729336885920,1.105458,68283.0,68282.0,0.08775987]
[1729336886119,0.065899,68282.0,68281.0,0.08775987]
[1729336886313,0.066099,68282.0,68279.0,0.3608]
[1729336886510,0.066101,68280.0,68279.0,0.3608]
[1729336886813,0.066101,68280.0,68279.0,0.45279337]
[1729336887012,0.066101,68280.0,68279.0,0.3608]
[1729336887613,0.066101,68280.0,68279.0,0.41928274]
[1729336893126,0.066101,68280.0,68279.0,0.3608]
[1729336893719,0.066101,68280.0,68279.0,0.41929347]
[1729336894122,0.066101,68280.0,68279.0,0.3608]
[1729336894325,0.0002,68280.0,68279.0,0.3608]
[1729336894525,0.066101,68280.0,68279.0,0.3608]
[1729336895028,0.065905,68276.0,68275.0,0.09885228]
[1729336895225,0.066105,68276.0,68275.0,0.09885228]
[1729336895723,0.066105,68276.0,68275.0,0.11787488]
[1729336896131,0.066105,68276.0,68275.0,0.58114004]
[1729336896433,0.066105,68276.0,68275.0,0.47867488]
[1729336899930,0.066105,68276.0,68275.0,0.47881171]
[1729336902729,0.066105,68276.0,68275.0,0.11801171]
[1729336903030,0.066105,68276.0,68275.0,0.47881171]
[1729336903229,0.066105,68276.0,68275.0,0.11801171]
[1729336903531,0.066105,68276.0,68275.0,0.47881171]
[1729336904626,0.066105,68276.0,68275.0,0.11801171]
[1729336904831,0.066105,68276.0,68275.0,0.47881171]
[1729336908228,0.066105,68276.0,68275.0,0.11801171]
[1729336908436,0.066105,68276.0,68275.0,0.47881171]
[1729336909633,0.066105,68276.0,68275.0,0.58611636]
[1729336910933,0.066105,68276.0,68275.0,0.47889646]
[1729336912337,0.066105,68276.0,68275.0,0.11809646]
[1729336912539,0.066105,68276.0,68275.0,0.47889646]
[1729336912931,0.066105,68276.0,68275.0,0.11809646]
[1729336913131,0.066105,68276.0,68275.0,0.47889646]
[1729336914140,0.066105,68276.0,68275.0,0.11809646]
[1729336914333,0.066105,68276.0,68275.0,0.47889646]
[1729336914533,0.066105,68276.0,68275.0,0.47890589]
[1729336915941,0.066105,68276.0,68275.0,0.11810589]
[1729336916344,0.066105,68276.0,68275.0,0.47890589]
[1729336917045,0.066105,68276.0,68275.0,0.11810589]
[1729336917540,0.066105,68276.0,68275.0,0.47890589]
[1729336917741,0.066105,68276.0,68275.0,0.58611575]
[1729336920041,0.066105,68276.0,68275.0,0.47890589]
[1729336920243,0.066105,68276.0,68275.0,0.45315704]
[1729336920542,0.066105,68276.0,68275.0,0.56057684]
[1729336920753,0.066105,68276.0,68275.0,0.56081001]
[1729336921542,0.066105,68276.0,68275.0,0.66335099]
[1729336921936,0.066105,68276.0,68275.0,0.45335237]
[1729336922641,0.066105,68276.0,68275.0,0.09255237]
[1729336926953,0.066105,68276.0,68275.0,0.19509335]
[1729336927248,0.066105,68276.0,68275.0,0.09255237]
[1729336932554,0.066105,68276.0,68275.0,0.09238266]
[1729336932852,0.0002,68276.0,68274.0,0.11986383]
[1729336933047,0.066106,68275.0,68274.0,0.11986383]
[1729336934457,0.066106,68275.0,68274.0,0.032]
[1729336938767,0.066106,68275.0,68274.0,0.1244076]
[1729336939268,0.066106,68275.0,68274.0,0.21680436]
[1729336939571,0.066106,68275.0,68274.0,0.12439676]
[1729336939868,0.066106,68275.0,68274.0,0.23167511]
[1729336942069,0.066106,68275.0,68274.0,0.33418638]
[1729336942455,0.066106,68275.0,68274.0,0.22690803]
[1729336942660,0.066106,68275.0,68274.0,0.33419683]
[1729336943067,0.066106,68275.0,68274.0,0.22690803]
[1729336944469,0.066106,68275.0,68274.0,0.12439676]
[1729336947880,0.066106,68275.0,68274.0,0.22690803]
[1729336948180,0.066106,68275.0,68274.0,0.12439676]
[1729336952583,0.066106,68275.0,68274.0,0.032]
[1729336952780,0.066106,68275.0,68274.0,0.12481826]
[1729336952973,0.09221745,68275.0,68274.0,0.12481826]
[1729336953378,0.066106,68275.0,68274.0,0.12481826]
[1729336956881,0.066106,68275.0,68274.0,0.23290771]
[1729336957083,0.066106,68275.0,68274.0,0.33543709]
[1729336957985,0.066106,68275.0,68274.0,0.23290771]
[1729336960883,0.066106,68275.0,68274.0,0.33544129]
[1729336961086,0.066106,68275.0,68274.0,0.23290771]
[1729336961388,0.066106,68275.0,68274.0,0.20090771]
[1729336961892,0.066106,68275.0,68274.0,0.20108049]
[1729336962080,0.066106,68275.0,68274.0,0.09304772]
[1729336962973,0.066106,68275.0,68265.0,0.16449575]
[1729336962974,0.065908,68273.0,68265.0,0.0327]
[1729336963174,0.36902421,68267.0,68266.0,0.17146597]
[1729336963774,0.36902421,68267.0,68266.0,0.07827735]
[1729336964090,0.36902421,68267.0,68257.0,0.3935]
[1729336964091,0.065915,68266.0,68265.0,0.07321881]
[1729336964384,0.066115,68266.0,68265.0,0.1519465]
[1729336964591,0.066115,68266.0,68263.0,0.07321881]
[1729336964592,0.065917,68264.0,68263.0,0.07321881]
[1729336964790,0.066117,68264.0,68263.0,0.07321881]
[1729336965688,0.065919,68262.0,68261.0,0.07321881]
[1729336965889,0.066119,68262.0,68261.0,0.15189486]
[1729336966079,0.066119,68262.0,68261.0,0.07321881]
[1729336966280,0.06592,68261.0,68260.0,0.07321881]
[1729336966477,0.065927,68253.0,68251.0,0.08784962]
[1729336966789,0.065927,68253.0,68252.0,0.07886566]
[1729336967487,0.065931,68249.0,68248.0,0.0312]
[1729336967690,0.066131,68249.0,68248.0,0.10973342]
[1729336972198,0.066131,68249.0,68248.0,0.26324465]
[1729336972499,0.066131,68249.0,68248.0,0.17566542]
[1729336973090,0.066131,68249.0,68248.0,0.10973342]
[1729336980703,0.066131,68249.0,68248.0,0.11129109]
[1729336981705,0.066131,68249.0,68248.0,0.0312]
[1729336983110,0.066131,68249.0,68248.0,0.11130688]
[1729336985409,0.066131,68249.0,68248.0,0.0312]
[1729336986809,0.016231,68249.0,68248.0,0.0312]
[1729336987111,0.3608,68257.0,68248.0,0.0312]
[1729336987311,0.3608,68257.0,68252.0,0.0002]
[1729336988111,0.065927,68253.0,68252.0,0.0002]
[1729336990413,0.065927,68253.0,68252.0,0.0800733]
[1729336992115,0.065927,68253.0,68252.0,0.0002]
[1729336993906,0.065927,68253.0,68252.0,0.02674709]
[1729336995018,0.0002,68262.0,68252.0,0.09267509]
[1729336995314,0.06592,68261.0,68260.0,0.3608]
[1729336995518,0.06592,68261.0,68260.0,0.63089636]
[1729336997421,0.06592,68261.0,68260.0,0.63091066]
[1729336998512,0.06592,68261.0,68260.0,0.65717278]
[1729336999922,0.06592,68261.0,68260.0,0.56200099]
[1729337001120,0.06592,68261.0,68260.0,0.46687139]
[1729337002418,0.06592,68261.0,68260.0,0.4667158]
[1729337007321,0.06592,68261.0,68260.0,0.46666267]
[1729337008118,0.0002,68262.0,68261.0,0.06592]
[1729337008321,0.0002,68262.0,68261.0,0.27059963]
[1729337009721,0.066119,68262.0,68261.0,0.27059963]
[1729337010719,0.0002,68264.0,68261.0,0.27059963]
[1729337010926,0.0002,68276.0,68265.0,0.065916]
[1729337011121,0.065907,68274.0,68273.0,0.08777745]
[1729337011322,0.065907,68274.0,68273.0,0.07960055]
[1729337011619,0.065907,68274.0,68273.0,0.17425408]
[1729337011925,0.0002,68276.0,68273.0,0.17425408]
[1729337011926,0.0002,68276.0,68273.0,0.17405954]
[1729337012114,0.066106,68275.0,68274.0,0.17405954]
[1729337012314,0.066106,68275.0,68274.0,0.17414983]
[1729337012530,0.066106,68275.0,68274.0,0.07940811]
[1729337012923,0.066106,68275.0,68274.0,0.17408369]
[1729337013418,0.066106,68275.0,68274.0,0.07940811]
[1729337016316,0.06591,68271.0,68270.0,0.0314]
[1729337016531,0.06611,68271.0,68270.0,0.0314]
[1729337016926,0.06611,68271.0,68270.0,0.05727224]
[1729337023221,0.06611,68271.0,68270.0,0.23160796]
[1729337024528,0.06611,68271.0,68270.0,0.20020796]
[1729337031229,0.06611,68271.0,68270.0,0.02587224]
[1729337031433,0.0002,68271.0,68269.0,0.0004]
[1729337031633,0.066111,68270.0,68269.0,0.0004]
[1729337034441,0.066111,68270.0,68269.0,0.02662855]
[1729337035553,0.066111,68270.0,68269.0,0.09981247]
[1729337036536,0.066111,68270.0,68269.0,0.17950391]
[1729337037740,0.066111,68270.0,68269.0,0.10631999]
[1729337038335,0.066111,68270.0,68269.0,0.31161806]
[1729337039541,0.066111,68270.0,68269.0,0.42873111]
[1729337040940,0.066111,68270.0,68269.0,0.43039829]
[1729337042042,0.066111,68270.0,68269.0,0.31328524]
[1729337042237,0.097111,68270.0,68269.0,0.31328524]
[1729337042434,0.127611,68270.0,68269.0,0.31328524]
[1729337049644,0.127611,68270.0,68269.0,0.31378567]
[1729337050148,0.127611,68270.0,68269.0,0.28755712]
[1729337050744,0.488411,68270.0,68269.0,0.17642283]
[1729337050955,1.088411,68270.0,68269.0,0.17642283]
[1729337051558,2.588411,68270.0,68269.0,0.17642283]
[1729337052045,1.088411,68270.0,68269.0,0.17642283]
[1729337052249,1.527851,68270.0,68269.0,0.08789512]
[1729337052450,1.46194,68270.0,68268.0,0.07320971]
[1729337052644,0.0002,68269.0,68268.0,0.07320971]
[1729337052850,0.43964,68269.0,68268.0,0.07320687]
[1729337053046,0.065921,68260.0,68259.0,0.08789433]
[1729337053547,0.066121,68260.0,68259.0,0.07319079]
[1729337054064,0.065922,68259.0,68258.0,0.10011631]
[1729337054250,0.066122,68259.0,68258.0,0.10011631]
[1729337055543,0.066122,68259.0,68258.0,0.02692552]
[1729337057061,0.066122,68259.0,68258.0,0.0002]
[1729337057253,0.099022,68259.0,68258.0,0.0002]
[1729337059358,0.130622,68259.0,68258.0,0.0002]
[1729337061253,0.130622,68259.0,68258.0,0.09608166]
[1729337066282,0.130622,68259.0,68258.0,0.08792604]
[1729337067307,0.130622,68259.0,68258.0,0.168506]
[1729337069097,0.130622,68259.0,68258.0,0.08077996]
[1729337072188,0.130622,68259.0,68258.0,0.17683731]
[1729337072383,0.099022,68259.0,68258.0,0.17683731]
[1729337073679,0.099022,68259.0,68258.0,0.177099]
[1729337080080,0.099022,68259.0,68258.0,0.17735458]
[1729337080271,0.099022,68259.0,68258.0,0.08090351]
[1729337080976,0.099022,68259.0,68258.0,0.16879134]
[1729337081282,0.099022,68259.0,68258.0,0.08090351]
[1729337081673,0.12491934,68259.0,68258.0,0.08090351]
[1729337081975,1.16443934,68259.0,68258.0,0.17770996]
[1729337082376,1.16443934,68259.0,68258.0,0.16878009]
[1729337082675,1.16443934,68259.0,68258.0,0.16877895]
[1729337083383,1.16443934,68259.0,68258.0,0.0002]
[1729337083578,2.66443934,68259.0,68258.0,0.16932474]
[1729337083879,3.02523934,68259.0,68258.0,0.16932474]
[1729337085173,2.22491934,68259.0,68258.0,0.16932474]
[1729337085367,2.58571934,68259.0,68258.0,0.08145965]
[1729337088281,2.58571934,68259.0,68258.0,0.08145155]
[1729337089285,1.98571934,68259.0,68258.0,0.08145155]
[1729337090389,1.62491934,68259.0,68258.0,0.08145155]
[1729337090584,1.98571934,68259.0,68258.0,0.08145155]
[1729337091788,1.62491934,68259.0,68258.0,0.08145155]
[1729337092084,1.98571934,68259.0,68258.0,0.08145155]
[1729337093186,1.98571934,68259.0,68258.0,0.08145684]
[1729337093390,1.62491934,68259.0,68258.0,0.08145684]
[1729337093889,1.98571934,68259.0,68258.0,0.08145684]
[1729337096393,1.62491934,68259.0,68258.0,0.08145684]
[1729337096795,1.98571934,68259.0,68258.0,0.08145684]
[1729337098093,1.62491934,68259.0,68258.0,0.08145684]
[1729337098292,1.98571934,68259.0,68258.0,0.08145684]
[1729337098687,1.62491934,68259.0,68258.0,0.08145684]
[1729337098888,1.98571934,68259.0,68258.0,0.08145684]
[1729337099186,1.62491934,68259.0,68258.0,0.08145684]
[1729337099502,1.98571934,68259.0,68258.0,0.08145684]
[1729337101489,1.98571934,68259.0,68258.0,0.08145009]
[1729337102789,1.62491934,68259.0,68258.0,0.08145009]
[1729337102993,1.98571934,68259.0,68258.0,0.08145009]
[1729337103297,1.62491934,68259.0,68258.0,0.08145009]
[1729337103501,1.98571934,68259.0,68258.0,0.08145009]
[1729337104497,1.95281934,68259.0,68258.0,0.08145009]
[1729337106193,1.59201934,68259.0,68258.0,0.08145009]
[1729337106506,1.95281934,68259.0,68258.0,0.0002]
[1729337109392,1.95281934,68259.0,68258.0,0.07341961]
[1729337110404,1.95281934,68259.0,68258.0,0.15477437]
[1729337110790,1.95281934,68259.0,68258.0,0.08155476]
[1729337111407,1.95281934,68259.0,68258.0,0.11259682]
[1729337112695,1.926922,68259.0,68258.0,0.11259682]
[1729337113003,1.926922,68259.0,68258.0,0.20046191]
[1729337113594,1.926922,68259.0,68258.0,0.20923216]
[1729337115811,0.066122,68259.0,68258.0,0.20923216]
[1729337121103,0.066122,68259.0,68258.0,0.20905019]
[1729337121812,0.066122,68259.0,68258.0,0.0313]
[1729337128613,0.066122,68259.0,68258.0,0.20914895]
[1729337129019,0.066122,68259.0,68258.0,0.20026857]
[1729337129519,0.066122,68259.0,68258.0,0.11243689]
[1729337130514,0.066122,68259.0,68258.0,0.11223689]
[1729337131022,0.066122,68259.0,68258.0,0.08113689]
[1729337135418,0.0002,68259.0,68258.0,0.08155832]
[1729337135621,0.066122,68259.0,68258.0,0.08155832]
[1729337138623,0.066122,68259.0,68258.0,0.17879185]
[1729337140325,0.426922,68259.0,68258.0,0.17879185]
[1729337140630,0.426922,68259.0,68258.0,0.17883357]
[1729337143819,0.065924,68257.0,68256.0,0.0326]
[1729337144027,0.066124,68257.0,68256.0,0.0326]
[1729337147626,0.065927,68253.0,68252.0,0.04394697]
[1729337147923,0.065927,68253.0,68251.0,0.04394697]
[1729337147924,0.065928,68252.0,68251.0,0.04394697]
[1729337148135,0.0002,68252.0,68251.0,0.04394697]
[1729337149030,0.066128,68252.0,68251.0,0.04394697]
[1729337149631,0.0002,68252.0,68251.0,0.04394971]
[1729337149831,0.066128,68252.0,68251.0,0.04394971]
[1729337150447,0.065931,68249.0,68248.0,0.44707821]
[1729337150738,0.066131,68249.0,68248.0,0.44611821]
[1729337151735,0.066131,68249.0,68248.0,0.67989636]
[1729337152743,0.066131,68249.0,68248.0,0.20594301]
[1729337154975,0.066131,68249.0,68248.0,0.20594518]
[1729337155345,0.0002,68257.0,68249.0,0.43956]
[1729337155548,0.0002,68257.0,68248.0,1.04793275]
[1729337155549,0.0002,68257.0,68253.0,0.3608]
[1729337155839,0.0002,68257.0,68254.0,0.17922294]
[1729337156045,0.0002,68257.0,68253.0,0.3608]
[1729337156046,0.065924,68256.0,68255.0,0.17922294]
[1729337158677,0.0002,68257.0,68253.0,0.3608]
[1729337158945,0.065926,68254.0,68253.0,0.3608]
[1729337159148,0.066126,68254.0,68253.0,0.3608]
[1729337160041,0.065927,68253.0,68252.0,0.0002]
[1729337160242,0.066127,68253.0,68252.0,0.0002]
[1729337165755,0.066127,68253.0,68252.0,0.17961547]
[1729337168762,0.066127,68253.0,68252.0,0.39553204]
[1729337169568,0.066127,68253.0,68252.0,0.29297537]
[1729337170166,0.066127,68253.0,68252.0,0.29306678]
[1729337172962,0.066127,68253.0,68252.0,0.19532971]
[1729337173166,0.066127,68253.0,68252.0,0.29289456]
[1729337177272,0.066127,68253.0,68252.0,0.41010218]
[1729337177476,0.0002,68257.0,68252.0,0.55290595]
[1729337177672,0.0002,68257.0,68255.0,0.3608]
[1729337177873,0.066124,68257.0,68256.0,0.32569456]
[1729337178077,0.066124,68257.0,68256.0,0.45428432]
[1729337178273,0.066124,68257.0,68256.0,0.44287591]
[1729337179481,0.066124,68257.0,68256.0,0.32569456]
[1729337180770,0.066124,68257.0,68256.0,0.033]
[1729337183178,0.066124,68257.0,68256.0,0.05917716]
[1729337188889,0.066124,68257.0,68256.0,0.35254754]
[1729337189082,0.066124,68257.0,68256.0,0.71334754]
[1729337189685,0.066124,68257.0,68256.0,0.81580517]
[1729337191481,0.066124,68257.0,68256.0,0.71334754]
[1729337191792,0.066124,68257.0,68256.0,0.81580312]
[1729337192092,0.066124,68257.0,68256.0,0.81580336]
[1729337192483,0.066124,68257.0,68256.0,0.70226444]
[1729337192881,0.066124,68257.0,68256.0,0.34146444]
[1729337193797,0.066124,68257.0,68256.0,0.45545892]
[1729337194490,0.066124,68257.0,68256.0,0.23900862]
[1729337195792,0.066124,68257.0,68256.0,0.10309407]
[1729337196086,0.066124,68257.0,68256.0,0.05917716]
[1729337196393,0.066124,68257.0,68256.0,0.10309407]
[1729337196892,0.066124,68257.0,68256.0,0.05917716]
[1729337197390,0.066124,68257.0,68256.0,0.10309407]
[1729337197704,0.066124,68257.0,68256.0,0.05917716]
[1729337200987,0.066124,68257.0,68256.0,0.10309407]
[1729337202090,0.066124,68257.0,68256.0,0.07691691]
[1729337204093,0.066124,68257.0,68256.0,0.32798364]
[1729337204590,0.066124,68257.0,68256.0,0.44516499]
[1729337205086,0.066124,68257.0,68256.0,0.32798364]
[1729337205500,0.066124,68257.0,68256.0,0.44516499]
[1729337206385,0.066124,68257.0,68256.0,0.44516952]
[1729337206688,0.066124,68257.0,68256.0,0.32810187]
[1729337207704,0.066124,68257.0,68256.0,0.4452993]
[1729337208199,0.066124,68257.0,68256.0,0.32810187]
[1729337208589,0.066124,68257.0,68256.0,0.44529954]
[1729337209093,0.066124,68257.0,68256.0,0.32810187]
[1729337209297,0.066124,68257.0,68256.0,0.44529992]
[1729337210987,0.066124,68257.0,68256.0,0.21389284]
[1729337211900,0.066124,68257.0,68256.0,0.11552555]
[1729337212802,0.066124,68257.0,68256.0,0.20342404]
[1729337214095,0.066124,68257.0,68256.0,0.11552555]
[1729337214296,0.066124,68257.0,68256.0,0.20342418]
[1729337215807,0.066124,68257.0,68256.0,0.20342497]
[1729337218196,0.066124,68257.0,68256.0,0.11552555]
[1729337218393,0.066124,68257.0,68256.0,0.20343033]
[1729337219106,0.066124,68257.0,68256.0,0.21393967]
[1729337219603,0.066124,68257.0,68256.0,0.43067885]
[1729337219905,0.066124,68257.0,68256.0,0.32813113]
[1729337220312,0.066124,68257.0,68256.0,0.68893113]
[1729337224112,0.066124,68257.0,68256.0,0.32813113]
[1729337227604,0.066124,68257.0,68256.0,0.44532918]
[1729337227802,0.066124,68257.0,68256.0,0.32813113]
[1729337228008,0.066124,68257.0,68256.0,0.44535953]
[1729337228712,0.066124,68257.0,68256.0,0.32813113]
[1729337228911,0.066124,68257.0,68256.0,0.44534326]
[1729337229401,0.066124,68257.0,68256.0,0.32813113]
[1729337229650,0.066124,68257.0,68256.0,0.32820405]
[1729337230108,0.066124,68257.0,68256.0,0.44541618]
[1729337230312,0.066124,68257.0,68256.0,0.32824663]
[1729337234109,0.066124,68257.0,68256.0,0.11556603]
[1729337240421,0.066124,68257.0,68256.0,0.20346343]
[1729337240618,0.066124,68257.0,68256.0,0.11556603]
[1729337241020,0.066124,68257.0,68256.0,0.32837102]
[1729337244130,0.066124,68257.0,68256.0,0.3287232]
[1729337247232,0.066124,68257.0,68256.0,0.44593533]
[1729337247428,0.066124,68257.0,68256.0,0.2142737]
[1729337249022,0.066124,68257.0,68256.0,0.1156993]
[1729337253842,0.066124,68257.0,68256.0,0.11580694]
[1729337256246,0.066124,68257.0,68256.0,0.43218336]
[1729337256544,0.066124,68257.0,68256.0,0.32961625]
[1729337257049,0.066124,68257.0,68256.0,0.21474478]
[1729337263759,0.065924,68257.0,68256.0,0.21474478]
[1729337264156,0.065924,68257.0,68256.0,0.11580694]
[1729337265254,0.065924,68257.0,68256.0,0.20373612]
[1729337265550,0.065924,68257.0,68256.0,0.11580694]
[1729337265860,0.065924,68257.0,68256.0,0.20373612]
[1729337266452,0.065924,68257.0,68256.0,0.11580694]
[1729337266963,0.065924,68257.0,68256.0,0.20373612]
[1729337268266,0.065924,68257.0,68256.0,0.11580694]
[1729337268652,0.065924,68257.0,68256.0,0.20373612]
[1729337268962,0.065924,68257.0,68256.0,0.11580694]
[1729337270254,0.065924,68257.0,68256.0,0.20373612]
[1729337271062,0.065924,68257.0,68256.0,0.11580694]
[1729337271265,0.065924,68257.0,68256.0,0.32970327]
[1729337272762,0.065924,68257.0,68256.0,0.4469154]
[1729337273063,0.065924,68257.0,68256.0,0.32970327]
[1729337273452,0.065924,68257.0,68256.0,0.33018304]
[1729337277562,0.065924,68257.0,68256.0,0.59260386]
[1729337278262,0.065924,68257.0,68256.0,0.46117611]
[1729337278464,0.065924,68257.0,68256.0,0.59260386]
[1729337278868,0.065924,68257.0,68256.0,0.46117611]
[1729337279167,0.065924,68257.0,68256.0,0.11610755]
[1729337279367,0.065924,68257.0,68256.0,0.21519104]
[1729337281561,0.065924,68257.0,68256.0,0.21495135]
[1729337283973,0.065924,68257.0,68256.0,0.57575135]
[1729337285170,0.065924,68257.0,68256.0,0.64167535]
[1729337286266,0.065924,68257.0,68256.0,0.88714883]
[1729337286473,1e-08,68257.0,68256.0,0.88698912]
[1729337286875,1e-08,68257.0,68256.0,1.0188387]
[1729337287075,1e-08,68257.0,68256.0,0.88698912]
[1729337287478,0.06592401,68257.0,68256.0,0.88698912]
[1729337290676,0.06592401,68257.0,68256.0,0.459724]
[1729337290876,0.06592401,68257.0,68256.0,0.88693987]
[1729337291079,0.06592401,68257.0,68256.0,0.75625797]
[1729337291343,0.06592401,68257.0,68256.0,0.459724]
[1729337296870,1e-08,68257.0,68256.0,0.459724]
[1729337297878,1e-08,68257.0,68256.0,0.88580561]
[1729337299385,1e-08,68257.0,68256.0,1.03221956]
[1729337299883,1e-08,68257.0,68256.0,0.88580561]
[1729337301484,1e-08,68257.0,68256.0,1.03221956]
[1729337301694,1e-08,68257.0,68256.0,0.88580561]
[1729337302281,1e-08,68257.0,68256.0,0.64101209]
[1729337305474,1e-08,68257.0,68256.0,0.459724]
[1729337305686,1e-08,68257.0,68256.0,0.64091266]
[1729337308490,0.0321,68267.0,68256.0,1.4613202]
[1729337308691,0.065915,68266.0,68265.0,0.3608]
[1729337308886,0.065915,68266.0,68265.0,0.51663189]
[1729337309086,0.065915,68266.0,68265.0,0.60446824]
[1729337309288,0.065915,68266.0,68265.0,0.7291364]
[1729337309484,0.065912,68270.0,68269.0,0.065912]
[1729337309692,0.065912,68270.0,68269.0,0.36107701]
[1729337310283,0.065912,68270.0,68269.0,0.47818264]
[1729337310990,0.065912,68270.0,68269.0,0.36107701]
[1729337312186,0.065912,68270.0,68269.0,0.29516501]
[1729337312693,0.065912,68270.0,68269.0,0.41220081]
[1729337314500,0.065912,68270.0,68269.0,0.29516501]
[1729337314983,0.065912,68270.0,68269.0,0.41220081]
[1729337315182,0.065912,68270.0,68269.0,0.41131901]
[1729337315591,0.065912,68270.0,68269.0,0.32089585]
[1729337316699,0.096912,68270.0,68269.0,0.32089585]
[1729337317389,0.096912,68270.0,68269.0,0.02661264]
[1729337317693,0.065914,68267.0,68266.0,0.0325]
[1729337317993,0.066114,68267.0,68266.0,0.25314771]
[1729337319090,0.066114,68267.0,68266.0,0.27993236]
[1729337324398,0.066114,68267.0,68266.0,0.57507776]
[1729337326280,0.066114,68267.0,68266.0,0.70520636]
[1729337330497,0.066114,68267.0,68266.0,0.8369601]
[1729337330697,0.066114,68267.0,68266.0,0.70520636]
[1729337331295,0.066114,68267.0,68266.0,0.8369601]
[1729337332405,0.066114,68267.0,68266.0,0.45560189]
[1729337332707,0.066114,68267.0,68266.0,0.32384815]
[1729337334010,0.066114,68267.0,68266.0,0.27993236]
[1729337334293,0.066114,68267.0,68266.0,0.32384815]
[1729337336215,0.066114,68267.0,68266.0,0.27993236]
[1729337339516,0.066114,68267.0,68266.0,0.45290709]
[1729337340328,0.066114,68267.0,68266.0,0.32255966]
[1729337341321,0.066114,68267.0,68266.0,0.45303455]
[1729337346827,0.066114,68267.0,68266.0,0.32255966]
[1729337347229,0.066114,68267.0,68266.0,0.45294112]
[1729337350139,0.066114,68267.0,68266.0,0.32255966]
[1729337352529,0.066114,68267.0,68266.0,0.32237109]
[1729337354529,0.066114,68267.0,68266.0,0.07072178]
[1729337355541,0.066114,68267.0,68266.0,0.43152178]